{"text_format":"1","workbook":"xlsx","n_sheets":5,"sheets":["【接触者リストの入力方法】","①接触者リスト（一般用）","②接触者リスト (医療機関来院者用①)","③接触者リスト (医療機関職員用)","②接触者リスト (医療機関来院者用②)"],"not_rendered":{"charts":0,"images":0,"macros":1,"external_links":0,"defined_names":8,"comments":0,"pivot_tables":0},"unopened":[],"bounds":{"document_bytes":16777216,"sheet_cells":100000,"rows_first":2000,"rows_last":500,"rows_between":2000,"halvings":0,"cell_chars":16384,"cell_head_chars":4096},"cells_cut":0,"cells_raw":0,"read":"whole","date_system":"1900"}

{"sheet":"【接触者リストの入力方法】","index":0,"n_rows":0,"n_cols":0,"rows_kept":0,"cut":false,"hidden":false,"merged":[]}

{"sheet":"①接触者リスト（一般用）","index":1,"n_rows":103,"n_cols":20,"rows_kept":103,"cut":false,"hidden":false,"merged":[[0,1,0,14],[1,10,2,10],[1,11,2,11],[1,12,2,12],[1,13,1,14],[1,5,2,5],[1,6,2,6],[1,7,2,7],[1,8,2,8],[1,9,2,9],[1,0,2,0],[1,19,2,19],[1,18,2,18],[1,17,2,17],[1,16,2,16],[1,15,2,15],[1,1,2,1],[1,2,2,2],[1,3,2,3],[1,4,2,4]]}
[]
["No.","①\n接触者氏名","②\nフリガナ","③\n年齢","④\n性別","⑤\n生年月日","⑥\n麻しん\n罹患歴","⑦\nワクチン\n接種歴","⑧ 住所","⑨ 電話番号","　⑩　麻しん患者との接触状況\n　（記載例）\n　　・職場同僚　　　・同居家族\n　　・学校（同じクラス）","⑪\n最終\n接触日","⑫\n保健所から\n連絡することを\n伝えたか","⑬ 感受性者への対応",null,"健康観察\n終了日","健康観察方法","対応保健所","転帰","備考"]
[null,null,null,null,null,null,null,null,null,null,null,null,null,"対応状況","実施日\n(実施ありの場合のみ記載)"]
[1,null,null,null,null,null,null,null,null,null,null,null,null,null,null,{"$f":"L4+21","v":"1900-01-21"}]
[2,null,null,null,null,null,null,null,null,null,null,null,null,null,null,{"$f":"L5+21","v":"1900-01-21"}]
[3,null,null,null,null,null,null,null,null,null,null,null,null,null,null,"1900-01-21"]
[4,null,null,null,null,null,null,null,null,null,null,null,null,null,null,"1900-01-21"]
[5,null,null,null,null,null,null,null,null,null,null,null,null,null,null,"1900-01-21"]
[6,null,null,null,null,null,null,null,null,null,null,null,null,null,null,"1900-01-21"]
[7,null,null,null,null,null,null,null,null,null,null,null,null,null,null,"1900-01-21"]
[8,null,null,null,null,null,null,null,null,null,null,null,null,null,null,"1900-01-21"]
[9,null,null,null,null,null,null,null,null,null,null,null,null,null,null,"1900-01-21"]
[10,null,null,null,null,null,null,null,null,null,null,null,null,null,null,"1900-01-21"]
[11,null,null,null,null,null,null,null,null,null,null,null,null,null,null,"1900-01-21"]
[12,null,null,null,null,null,null,null,null,null,null,null,null,null,null,"1900-01-21"]
[13,null,null,null,null,null,null,null,null,null,null,null,null,null,null,"1900-01-21"]
[14,null,null,null,null,null,null,null,null,null,null,null,null,null,null,"1900-01-21"]
[15,null,null,null,null,null,null,null,null,null,null,null,null,null,null,"1900-01-21"]
[16,null,null,null,null,null,null,null,null,null,null,null,null,null,null,"1900-01-21"]
[17,null,null,null,null,null,null,null,null,null,null,null,null,null,null,"1900-01-21"]
[18,null,null,null,null,null,null,null,null,null,null,null,null,null,null,"1900-01-21"]
[19,null,null,null,null,null,null,null,null,null,null,null,null,null,null,"1900-01-21"]
[20,null,null,null,null,null,null,null,null,null,null,null,null,null,null,"1900-01-21"]
[21,null,null,null,null,null,null,null,null,null,null,null,null,null,null,"1900-01-21"]
[22,null,null,null,null,null,null,null,null,null,null,null,null,null,null,"1900-01-21"]
[23,null,null,null,null,null,null,null,null,null,null,null,null,null,null,"1900-01-21"]
[24,null,null,null,null,null,null,null,null,null,null,null,null,null,null,"1900-01-21"]
[25,null,null,null,null,null,null,null,null,null,null,null,null,null,null,"1900-01-21"]
[26,null,null,null,null,null,null,null,null,null,null,null,null,null,null,"1900-01-21"]
[27,null,null,null,null,null,null,null,null,null,null,null,null,null,null,"1900-01-21"]
[28,null,null,null,null,null,null,null,null,null,null,null,null,null,null,"1900-01-21"]
[29,null,null,null,null,null,null,null,null,null,null,null,null,null,null,"1900-01-21"]
[30,null,null,null,null,null,null,null,null,null,null,null,null,null,null,"1900-01-21"]
[31,null,null,null,null,null,null,null,null,null,null,null,null,null,null,"1900-01-21"]
[32,null,null,null,null,null,null,null,null,null,null,null,null,null,null,"1900-01-21"]
[33,null,null,null,null,null,null,null,null,null,null,null,null,null,null,"1900-01-21"]
[34,null,null,null,null,null,null,null,null,null,null,null,null,null,null,"1900-01-21"]
[35,null,null,null,null,null,null,null,null,null,null,null,null,null,null,"1900-01-21"]
[36,null,null,null,null,null,null,null,null,null,null,null,null,null,null,"1900-01-21"]
[37,null,null,null,null,null,null,null,null,null,null,null,null,null,null,"1900-01-21"]
[38,null,null,null,null,null,null,null,null,null,null,null,null,null,null,"1900-01-21"]
[39,null,null,null,null,null,null,null,null,null,null,null,null,null,null,"1900-01-21"]
[40,null,null,null,null,null,null,null,null,null,null,null,null,null,null,"1900-01-21"]
[41,null,null,null,null,null,null,null,null,null,null,null,null,null,null,"1900-01-21"]
[42,null,null,null,null,null,null,null,null,null,null,null,null,null,null,"1900-01-21"]
[43,null,null,null,null,null,null,null,null,null,null,null,null,null,null,"1900-01-21"]
[44,null,null,null,null,null,null,null,null,null,null,null,null,null,null,"1900-01-21"]
[45,null,null,null,null,null,null,null,null,null,null,null,null,null,null,"1900-01-21"]
[46,null,null,null,null,null,null,null,null,null,null,null,null,null,null,"1900-01-21"]
[47,null,null,null,null,null,null,null,null,null,null,null,null,null,null,"1900-01-21"]
[48,null,null,null,null,null,null,null,null,null,null,null,null,null,null,"1900-01-21"]
[49,null,null,null,null,null,null,null,null,null,null,null,null,null,null,"1900-01-21"]
[50,null,null,null,null,null,null,null,null,null,null,null,null,null,null,"1900-01-21"]
[51,null,null,null,null,null,null,null,null,null,null,null,null,null,null,"1900-01-21"]
[52,null,null,null,null,null,null,null,null,null,null,null,null,null,null,"1900-01-21"]
[53,null,null,null,null,null,null,null,null,null,null,null,null,null,null,"1900-01-21"]
[54,null,null,null,null,null,null,null,null,null,null,null,null,null,null,"1900-01-21"]
[55,null,null,null,null,null,null,null,null,null,null,null,null,null,null,"1900-01-21"]
[56,null,null,null,null,null,null,null,null,null,null,null,null,null,null,"1900-01-21"]
[57,null,null,null,null,null,null,null,null,null,null,null,null,null,null,"1900-01-21"]
[58,null,null,null,null,null,null,null,null,null,null,null,null,null,null,"1900-01-21"]
[59,null,null,null,null,null,null,null,null,null,null,null,null,null,null,"1900-01-21"]
[60,null,null,null,null,null,null,null,null,null,null,null,null,null,null,"1900-01-21"]
[61,null,null,null,null,null,null,null,null,null,null,null,null,null,null,"1900-01-21"]
[62,null,null,null,null,null,null,null,null,null,null,null,null,null,null,"1900-01-21"]
[63,null,null,null,null,null,null,null,null,null,null,null,null,null,null,"1900-01-21"]
[64,null,null,null,null,null,null,null,null,null,null,null,null,null,null,"1900-01-21"]
[65,null,null,null,null,null,null,null,null,null,null,null,null,null,null,"1900-01-21"]
[66,null,null,null,null,null,null,null,null,null,null,null,null,null,null,{"$f":"L69+21","v":"1900-01-21"}]
[67,null,null,null,null,null,null,null,null,null,null,null,null,null,null,"1900-01-21"]
[68,null,null,null,null,null,null,null,null,null,null,null,null,null,null,"1900-01-21"]
[69,null,null,null,null,null,null,null,null,null,null,null,null,null,null,"1900-01-21"]
[70,null,null,null,null,null,null,null,null,null,null,null,null,null,null,"1900-01-21"]
[71,null,null,null,null,null,null,null,null,null,null,null,null,null,null,"1900-01-21"]
[72,null,null,null,null,null,null,null,null,null,null,null,null,null,null,"1900-01-21"]
[73,null,null,null,null,null,null,null,null,null,null,null,null,null,null,"1900-01-21"]
[74,null,null,null,null,null,null,null,null,null,null,null,null,null,null,"1900-01-21"]
[75,null,null,null,null,null,null,null,null,null,null,null,null,null,null,"1900-01-21"]
[76,null,null,null,null,null,null,null,null,null,null,null,null,null,null,"1900-01-21"]
[77,null,null,null,null,null,null,null,null,null,null,null,null,null,null,"1900-01-21"]
[78,null,null,null,null,null,null,null,null,null,null,null,null,null,null,"1900-01-21"]
[79,null,null,null,null,null,null,null,null,null,null,null,null,null,null,"1900-01-21"]
[80,null,null,null,null,null,null,null,null,null,null,null,null,null,null,"1900-01-21"]
[81,null,null,null,null,null,null,null,null,null,null,null,null,null,null,"1900-01-21"]
[82,null,null,null,null,null,null,null,null,null,null,null,null,null,null,"1900-01-21"]
[83,null,null,null,null,null,null,null,null,null,null,null,null,null,null,"1900-01-21"]
[84,null,null,null,null,null,null,null,null,null,null,null,null,null,null,"1900-01-21"]
[85,null,null,null,null,null,null,null,null,null,null,null,null,null,null,"1900-01-21"]
[86,null,null,null,null,null,null,null,null,null,null,null,null,null,null,"1900-01-21"]
[87,null,null,null,null,null,null,null,null,null,null,null,null,null,null,"1900-01-21"]
[88,null,null,null,null,null,null,null,null,null,null,null,null,null,null,"1900-01-21"]
[89,null,null,null,null,null,null,null,null,null,null,null,null,null,null,"1900-01-21"]
[90,null,null,null,null,null,null,null,null,null,null,null,null,null,null,"1900-01-21"]
[91,null,null,null,null,null,null,null,null,null,null,null,null,null,null,"1900-01-21"]
[92,null,null,null,null,null,null,null,null,null,null,null,null,null,null,"1900-01-21"]
[93,null,null,null,null,null,null,null,null,null,null,null,null,null,null,"1900-01-21"]
[94,null,null,null,null,null,null,null,null,null,null,null,null,null,null,"1900-01-21"]
[95,null,null,null,null,null,null,null,null,null,null,null,null,null,null,"1900-01-21"]
[96,null,null,null,null,null,null,null,null,null,null,null,null,null,null,"1900-01-21"]
[97,null,null,null,null,null,null,null,null,null,null,null,null,null,null,"1900-01-21"]
[98,null,null,null,null,null,null,null,null,null,null,null,null,null,null,"1900-01-21"]
[99,null,null,null,null,null,null,null,null,null,null,null,null,null,null,"1900-01-21"]
[100,null,null,null,null,null,null,null,null,null,null,null,null,null,null,"1900-01-21"]

{"sheet":"②接触者リスト (医療機関来院者用①)","index":2,"n_rows":103,"n_cols":22,"rows_kept":103,"cut":false,"hidden":false,"merged":[[1,0,2,0],[1,15,1,16],[1,4,2,4],[1,5,2,5],[1,6,2,6],[1,7,2,7],[1,8,2,8],[1,9,2,9],[1,10,2,10],[1,11,2,11],[1,12,2,12],[1,13,2,13],[1,14,2,14],[1,1,2,1],[1,2,2,2],[1,3,2,3],[1,21,2,21],[1,20,2,20],[1,19,2,19],[1,18,2,18],[1,17,2,17]]}
[]
["No.","★-1\n区分","①\n接触者氏名","②\nフリガナ","③\n年齢","④\n性別","⑤\n生年月日","⑥\n麻しん\n罹患歴","⑦\nワクチン\n接種歴","★-2\n（同行者のみ記載）\n受診患者名\nまたは受診患者No.","⑧ 住所","⑨ 電話番号","　⑩　麻しん患者との接触状況\n　（記載例）\n　　・外来患者　・面会者\n　　・外部業者(検査機関）","⑪\n最終\n接触日","⑫\n保健所から\n連絡することを\n伝えたか","⑬ 感受性者への対応",null,"健康観察\n終了日","健康観察方法","対応保健所","転帰","備考"]
[null,null,null,null,null,null,null,null,null,null,null,null,null,null,null,"対応状況","実施日\n(実施ありの場合のみ記載)"]
[1,null,null,null,null,null,null,null,null,null,null,null,null,null,null,null,null,{"$f":"N4+21","v":"1900-01-21"}]
[2,null,null,null,null,null,null,null,null,null,null,null,null,null,null,null,null,"1900-01-21"]
[3,null,null,null,null,null,null,null,null,null,null,null,null,null,null,null,null,"1900-01-21"]
[4,null,null,null,null,null,null,null,null,null,null,null,null,null,null,null,null,"1900-01-21"]
[5,null,null,null,null,null,null,null,null,null,null,null,null,null,null,null,null,"1900-01-21"]
[6,null,null,null,null,null,null,null,null,null,null,null,null,null,null,null,null,"1900-01-21"]
[7,null,null,null,null,null,null,null,null,null,null,null,null,null,null,null,null,"1900-01-21"]
[8,null,null,null,null,null,null,null,null,null,null,null,null,null,null,null,null,"1900-01-21"]
[9,null,null,null,null,null,null,null,null,null,null,null,null,null,null,null,null,"1900-01-21"]
[10,null,null,null,null,null,null,null,null,null,null,null,null,null,null,null,null,"1900-01-21"]
[11,null,null,null,null,null,null,null,null,null,null,null,null,null,null,null,null,"1900-01-21"]
[12,null,null,null,null,null,null,null,null,null,null,null,null,null,null,null,null,"1900-01-21"]
[13,null,null,null,null,null,null,null,null,null,null,null,null,null,null,null,null,"1900-01-21"]
[14,null,null,null,null,null,null,null,null,null,null,null,null,null,null,null,null,"1900-01-21"]
[15,null,null,null,null,null,null,null,null,null,null,null,null,null,null,null,null,"1900-01-21"]
[16,null,null,null,null,null,null,null,null,null,null,null,null,null,null,null,null,"1900-01-21"]
[17,null,null,null,null,null,null,null,null,null,null,null,null,null,null,null,null,"1900-01-21"]
[18,null,null,null,null,null,null,null,null,null,null,null,null,null,null,null,null,"1900-01-21"]
[19,null,null,null,null,null,null,null,null,null,null,null,null,null,null,null,null,"1900-01-21"]
[20,null,null,null,null,null,null,null,null,null,null,null,null,null,null,null,null,"1900-01-21"]
[21,null,null,null,null,null,null,null,null,null,null,null,null,null,null,null,null,"1900-01-21"]
[22,null,null,null,null,null,null,null,null,null,null,null,null,null,null,null,null,"1900-01-21"]
[23,null,null,null,null,null,null,null,null,null,null,null,null,null,null,null,null,"1900-01-21"]
[24,null,null,null,null,null,null,null,null,null,null,null,null,null,null,null,null,"1900-01-21"]
[25,null,null,null,null,null,null,null,null,null,null,null,null,null,null,null,null,"1900-01-21"]
[26,null,null,null,null,null,null,null,null,null,null,null,null,null,null,null,null,"1900-01-21"]
[27,null,null,null,null,null,null,null,null,null,null,null,null,null,null,null,null,"1900-01-21"]
[28,null,null,null,null,null,null,null,null,null,null,null,null,null,null,null,null,"1900-01-21"]
[29,null,null,null,null,null,null,null,null,null,null,null,null,null,null,null,null,"1900-01-21"]
[30,null,null,null,null,null,null,null,null,null,null,null,null,null,null,null,null,"1900-01-21"]
[31,null,null,null,null,null,null,null,null,null,null,null,null,null,null,null,null,"1900-01-21"]
[32,null,null,null,null,null,null,null,null,null,null,null,null,null,null,null,null,"1900-01-21"]
[33,null,null,null,null,null,null,null,null,null,null,null,null,null,null,null,null,{"$f":"N36+21","v":"1900-01-21"}]
[34,null,null,null,null,null,null,null,null,null,null,null,null,null,null,null,null,"1900-01-21"]
[35,null,null,null,null,null,null,null,null,null,null,null,null,null,null,null,null,"1900-01-21"]
[36,null,null,null,null,null,null,null,null,null,null,null,null,null,null,null,null,"1900-01-21"]
[37,null,null,null,null,null,null,null,null,null,null,null,null,null,null,null,null,"1900-01-21"]
[38,null,null,null,null,null,null,null,null,null,null,null,null,null,null,null,null,"1900-01-21"]
[39,null,null,null,null,null,null,null,null,null,null,null,null,null,null,null,null,"1900-01-21"]
[40,null,null,null,null,null,null,null,null,null,null,null,null,null,null,null,null,"1900-01-21"]
[41,null,null,null,null,null,null,null,null,null,null,null,null,null,null,null,null,"1900-01-21"]
[42,null,null,null,null,null,null,null,null,null,null,null,null,null,null,null,null,"1900-01-21"]
[43,null,null,null,null,null,null,null,null,null,null,null,null,null,null,null,null,"1900-01-21"]
[44,null,null,null,null,null,null,null,null,null,null,null,null,null,null,null,null,"1900-01-21"]
[45,null,null,null,null,null,null,null,null,null,null,null,null,null,null,null,null,"1900-01-21"]
[46,null,null,null,null,null,null,null,null,null,null,null,null,null,null,null,null,"1900-01-21"]
[47,null,null,null,null,null,null,null,null,null,null,null,null,null,null,null,null,"1900-01-21"]
[48,null,null,null,null,null,null,null,null,null,null,null,null,null,null,null,null,"1900-01-21"]
[49,null,null,null,null,null,null,null,null,null,null,null,null,null,null,null,null,"1900-01-21"]
[50,null,null,null,null,null,null,null,null,null,null,null,null,null,null,null,null,"1900-01-21"]
[51,null,null,null,null,null,null,null,null,null,null,null,null,null,null,null,null,"1900-01-21"]
[52,null,null,null,null,null,null,null,null,null,null,null,null,null,null,null,null,"1900-01-21"]
[53,null,null,null,null,null,null,null,null,null,null,null,null,null,null,null,null,"1900-01-21"]
[54,null,null,null,null,null,null,null,null,null,null,null,null,null,null,null,null,"1900-01-21"]
[55,null,null,null,null,null,null,null,null,null,null,null,null,null,null,null,null,"1900-01-21"]
[56,null,null,null,null,null,null,null,null,null,null,null,null,null,null,null,null,"1900-01-21"]
[57,null,null,null,null,null,null,null,null,null,null,null,null,null,null,null,null,"1900-01-21"]
[58,null,null,null,null,null,null,null,null,null,null,null,null,null,null,null,null,"1900-01-21"]
[59,null,null,null,null,null,null,null,null,null,null,null,null,null,null,null,null,"1900-01-21"]
[60,null,null,null,null,null,null,null,null,null,null,null,null,null,null,null,null,"1900-01-21"]
[61,null,null,null,null,null,null,null,null,null,null,null,null,null,null,null,null,"1900-01-21"]
[62,null,null,null,null,null,null,null,null,null,null,null,null,null,null,null,null,"1900-01-21"]
[63,null,null,null,null,null,null,null,null,null,null,null,null,null,null,null,null,"1900-01-21"]
[64,null,null,null,null,null,null,null,null,null,null,null,null,null,null,null,null,"1900-01-21"]
[65,null,null,null,null,null,null,null,null,null,null,null,null,null,null,null,null,{"$f":"N68+21","v":"1900-01-21"}]
[66,null,null,null,null,null,null,null,null,null,null,null,null,null,null,null,null,"1900-01-21"]
[67,null,null,null,null,null,null,null,null,null,null,null,null,null,null,null,null,"1900-01-21"]
[68,null,null,null,null,null,null,null,null,null,null,null,null,null,null,null,null,"1900-01-21"]
[69,null,null,null,null,null,null,null,null,null,null,null,null,null,null,null,null,"1900-01-21"]
[70,null,null,null,null,null,null,null,null,null,null,null,null,null,null,null,null,"1900-01-21"]
[71,null,null,null,null,null,null,null,null,null,null,null,null,null,null,null,null,"1900-01-21"]
[72,null,null,null,null,null,null,null,null,null,null,null,null,null,null,null,null,"1900-01-21"]
[73,null,null,null,null,null,null,null,null,null,null,null,null,null,null,null,null,"1900-01-21"]
[74,null,null,null,null,null,null,null,null,null,null,null,null,null,null,null,null,"1900-01-21"]
[75,null,null,null,null,null,null,null,null,null,null,null,null,null,null,null,null,"1900-01-21"]
[76,null,null,null,null,null,null,null,null,null,null,null,null,null,null,null,null,"1900-01-21"]
[77,null,null,null,null,null,null,null,null,null,null,null,null,null,null,null,null,"1900-01-21"]
[78,null,null,null,null,null,null,null,null,null,null,null,null,null,null,null,null,"1900-01-21"]
[79,null,null,null,null,null,null,null,null,null,null,null,null,null,null,null,null,"1900-01-21"]
[80,null,null,null,null,null,null,null,null,null,null,null,null,null,null,null,null,"1900-01-21"]
[81,null,null,null,null,null,null,null,null,null,null,null,null,null,null,null,null,"1900-01-21"]
[82,null,null,null,null,null,null,null,null,null,null,null,null,null,null,null,null,"1900-01-21"]
[83,null,null,null,null,null,null,null,null,null,null,null,null,null,null,null,null,"1900-01-21"]
[84,null,null,null,null,null,null,null,null,null,null,null,null,null,null,null,null,"1900-01-21"]
[85,null,null,null,null,null,null,null,null,null,null,null,null,null,null,null,null,"1900-01-21"]
[86,null,null,null,null,null,null,null,null,null,null,null,null,null,null,null,null,"1900-01-21"]
[87,null,null,null,null,null,null,null,null,null,null,null,null,null,null,null,null,"1900-01-21"]
[88,null,null,null,null,null,null,null,null,null,null,null,null,null,null,null,null,"1900-01-21"]
[89,null,null,null,null,null,null,null,null,null,null,null,null,null,null,null,null,"1900-01-21"]
[90,null,null,null,null,null,null,null,null,null,null,null,null,null,null,null,null,"1900-01-21"]
[91,null,null,null,null,null,null,null,null,null,null,null,null,null,null,null,null,"1900-01-21"]
[92,null,null,null,null,null,null,null,null,null,null,null,null,null,null,null,null,"1900-01-21"]
[93,null,null,null,null,null,null,null,null,null,null,null,null,null,null,null,null,"1900-01-21"]
[94,null,null,null,null,null,null,null,null,null,null,null,null,null,null,null,null,"1900-01-21"]
[95,null,null,null,null,null,null,null,null,null,null,null,null,null,null,null,null,"1900-01-21"]
[96,null,null,null,null,null,null,null,null,null,null,null,null,null,null,null,null,"1900-01-21"]
[97,null,null,null,null,null,null,null,null,null,null,null,null,null,null,null,null,"1900-01-21"]
[98,null,null,null,null,null,null,null,null,null,null,null,null,null,null,null,null,"1900-01-21"]
[99,null,null,null,null,null,null,null,null,null,null,null,null,null,null,null,null,"1900-01-21"]
[100,null,null,null,null,null,null,null,null,null,null,null,null,null,null,null,null,"1900-01-21"]

{"sheet":"③接触者リスト (医療機関職員用)","index":3,"n_rows":103,"n_cols":23,"rows_kept":103,"cut":false,"hidden":false,"merged":[[1,0,2,0],[1,3,2,3],[1,16,1,17],[1,1,2,1],[1,2,2,2],[1,15,2,15],[1,14,2,14],[1,13,2,13],[1,12,2,12],[1,11,2,11],[1,8,2,8],[1,7,2,7],[1,6,2,6],[1,5,2,5],[1,21,2,21],[1,22,2,22],[1,4,2,4],[1,9,1,10],[1,18,2,18],[1,19,2,19],[1,20,2,20]]}
[]
["No.","①\n接触者氏名","②\nフリガナ","③\n年齢","④\n性別","⑤\n生年月日","▲-1\n職種","⑥\n麻しん\n罹患歴","⑦\nワクチン\n接種歴","▲-2　麻しん抗体価",null,"⑧ 住所","⑨ 電話番号","　⑩　麻しん患者との接触状況\n　（記載例）\n　　・近距離で患者対応\n　　・患者と空間共有　　・同僚","⑪\n最終\n接触日","⑫\n保健所から\n連絡することを\n伝えたか","⑬ 感受性者への対応",null,"健康観察\n終了日","健康観察方法","対応保健所","転帰","備考"]
[null,null,null,null,null,null,null,null,null,"抗体価","検査実施日",null,null,null,null,null,"対応状況","実施日\n(実施ありの場合のみ記載)"]
[1,null,null,null,null,null,null,null,null,null,null,null,null,null,null,null,null,null,{"$f":"O4+21","v":"1900-01-21"}]
[2,null,null,null,null,null,null,null,null,null,null,null,null,null,null,null,null,null,"1900-01-21"]
[3,null,null,null,null,null,null,null,null,null,null,null,null,null,null,null,null,null,"1900-01-21"]
[4,null,null,null,null,null,null,null,null,null,null,null,null,null,null,null,null,null,"1900-01-21"]
[5,null,null,null,null,null,null,null,null,null,null,null,null,null,null,null,null,null,"1900-01-21"]
[6,null,null,null,null,null,null,null,null,null,null,null,null,null,null,null,null,null,"1900-01-21"]
[7,null,null,null,null,null,null,null,null,null,null,null,null,null,null,null,null,null,"1900-01-21"]
[8,null,null,null,null,null,null,null,null,null,null,null,null,null,null,null,null,null,"1900-01-21"]
[9,null,null,null,null,null,null,null,null,null,null,null,null,null,null,null,null,null,"1900-01-21"]
[10,null,null,null,null,null,null,null,null,null,null,null,null,null,null,null,null,null,"1900-01-21"]
[11,null,null,null,null,null,null,null,null,null,null,null,null,null,null,null,null,null,"1900-01-21"]
[12,null,null,null,null,null,null,null,null,null,null,null,null,null,null,null,null,null,"1900-01-21"]
[13,null,null,null,null,null,null,null,null,null,null,null,null,null,null,null,null,null,"1900-01-21"]
[14,null,null,null,null,null,null,null,null,null,null,null,null,null,null,null,null,null,"1900-01-21"]
[15,null,null,null,null,null,null,null,null,null,null,null,null,null,null,null,null,null,"1900-01-21"]
[16,null,null,null,null,null,null,null,null,null,null,null,null,null,null,null,null,null,"1900-01-21"]
[17,null,null,null,null,null,null,null,null,null,null,null,null,null,null,null,null,null,"1900-01-21"]
[18,null,null,null,null,null,null,null,null,null,null,null,null,null,null,null,null,null,"1900-01-21"]
[19,null,null,null,null,null,null,null,null,null,null,null,null,null,null,null,null,null,"1900-01-21"]
[20,null,null,null,null,null,null,null,null,null,null,null,null,null,null,null,null,null,"1900-01-21"]
[21,null,null,null,null,null,null,null,null,null,null,null,null,null,null,null,null,null,"1900-01-21"]
[22,null,null,null,null,null,null,null,null,null,null,null,null,null,null,null,null,null,"1900-01-21"]
[23,null,null,null,null,null,null,null,null,null,null,null,null,null,null,null,null,null,"1900-01-21"]
[24,null,null,null,null,null,null,null,null,null,null,null,null,null,null,null,null,null,"1900-01-21"]
[25,null,null,null,null,null,null,null,null,null,null,null,null,null,null,null,null,null,"1900-01-21"]
[26,null,null,null,null,null,null,null,null,null,null,null,null,null,null,null,null,null,"1900-01-21"]
[27,null,null,null,null,null,null,null,null,null,null,null,null,null,null,null,null,null,"1900-01-21"]
[28,null,null,null,null,null,null,null,null,null,null,null,null,null,null,null,null,null,"1900-01-21"]
[29,null,null,null,null,null,null,null,null,null,null,null,null,null,null,null,null,null,"1900-01-21"]
[30,null,null,null,null,null,null,null,null,null,null,null,null,null,null,null,null,null,"1900-01-21"]
[31,null,null,null,null,null,null,null,null,null,null,null,null,null,null,null,null,null,"1900-01-21"]
[32,null,null,null,null,null,null,null,null,null,null,null,null,null,null,null,null,null,"1900-01-21"]
[33,null,null,null,null,null,null,null,null,null,null,null,null,null,null,null,null,null,{"$f":"O36+21","v":"1900-01-21"}]
[34,null,null,null,null,null,null,null,null,null,null,null,null,null,null,null,null,null,"1900-01-21"]
[35,null,null,null,null,null,null,null,null,null,null,null,null,null,null,null,null,null,"1900-01-21"]
[36,null,null,null,null,null,null,null,null,null,null,null,null,null,null,null,null,null,"1900-01-21"]
[37,null,null,null,null,null,null,null,null,null,null,null,null,null,null,null,null,null,"1900-01-21"]
[38,null,null,null,null,null,null,null,null,null,null,null,null,null,null,null,null,null,"1900-01-21"]
[39,null,null,null,null,null,null,null,null,null,null,null,null,null,null,null,null,null,"1900-01-21"]
[40,null,null,null,null,null,null,null,null,null,null,null,null,null,null,null,null,null,"1900-01-21"]
[41,null,null,null,null,null,null,null,null,null,null,null,null,null,null,null,null,null,"1900-01-21"]
[42,null,null,null,null,null,null,null,null,null,null,null,null,null,null,null,null,null,"1900-01-21"]
[43,null,null,null,null,null,null,null,null,null,null,null,null,null,null,null,null,null,"1900-01-21"]
[44,null,null,null,null,null,null,null,null,null,null,null,null,null,null,null,null,null,"1900-01-21"]
[45,null,null,null,null,null,null,null,null,null,null,null,null,null,null,null,null,null,"1900-01-21"]
[46,null,null,null,null,null,null,null,null,null,null,null,null,null,null,null,null,null,"1900-01-21"]
[47,null,null,null,null,null,null,null,null,null,null,null,null,null,null,null,null,null,"1900-01-21"]
[48,null,null,null,null,null,null,null,null,null,null,null,null,null,null,null,null,null,"1900-01-21"]
[49,null,null,null,null,null,null,null,null,null,null,null,null,null,null,null,null,null,"1900-01-21"]
[50,null,null,null,null,null,null,null,null,null,null,null,null,null,null,null,null,null,"1900-01-21"]
[51,null,null,null,null,null,null,null,null,null,null,null,null,null,null,null,null,null,"1900-01-21"]
[52,null,null,null,null,null,null,null,null,null,null,null,null,null,null,null,null,null,"1900-01-21"]
[53,null,null,null,null,null,null,null,null,null,null,null,null,null,null,null,null,null,"1900-01-21"]
[54,null,null,null,null,null,null,null,null,null,null,null,null,null,null,null,null,null,"1900-01-21"]
[55,null,null,null,null,null,null,null,null,null,null,null,null,null,null,null,null,null,"1900-01-21"]
[56,null,null,null,null,null,null,null,null,null,null,null,null,null,null,null,null,null,"1900-01-21"]
[57,null,null,null,null,null,null,null,null,null,null,null,null,null,null,null,null,null,"1900-01-21"]
[58,null,null,null,null,null,null,null,null,null,null,null,null,null,null,null,null,null,"1900-01-21"]
[59,null,null,null,null,null,null,null,null,null,null,null,null,null,null,null,null,null,"1900-01-21"]
[60,null,null,null,null,null,null,null,null,null,null,null,null,null,null,null,null,null,"1900-01-21"]
[61,null,null,null,null,null,null,null,null,null,null,null,null,null,null,null,null,null,"1900-01-21"]
[62,null,null,null,null,null,null,null,null,null,null,null,null,null,null,null,null,null,"1900-01-21"]
[63,null,null,null,null,null,null,null,null,null,null,null,null,null,null,null,null,null,"1900-01-21"]
[64,null,null,null,null,null,null,null,null,null,null,null,null,null,null,null,null,null,"1900-01-21"]
[65,null,null,null,null,null,null,null,null,null,null,null,null,null,null,null,null,null,{"$f":"O68+21","v":"1900-01-21"}]
[66,null,null,null,null,null,null,null,null,null,null,null,null,null,null,null,null,null,"1900-01-21"]
[67,null,null,null,null,null,null,null,null,null,null,null,null,null,null,null,null,null,"1900-01-21"]
[68,null,null,null,null,null,null,null,null,null,null,null,null,null,null,null,null,null,"1900-01-21"]
[69,null,null,null,null,null,null,null,null,null,null,null,null,null,null,null,null,null,"1900-01-21"]
[70,null,null,null,null,null,null,null,null,null,null,null,null,null,null,null,null,null,"1900-01-21"]
[71,null,null,null,null,null,null,null,null,null,null,null,null,null,null,null,null,null,"1900-01-21"]
[72,null,null,null,null,null,null,null,null,null,null,null,null,null,null,null,null,null,"1900-01-21"]
[73,null,null,null,null,null,null,null,null,null,null,null,null,null,null,null,null,null,"1900-01-21"]
[74,null,null,null,null,null,null,null,null,null,null,null,null,null,null,null,null,null,"1900-01-21"]
[75,null,null,null,null,null,null,null,null,null,null,null,null,null,null,null,null,null,"1900-01-21"]
[76,null,null,null,null,null,null,null,null,null,null,null,null,null,null,null,null,null,"1900-01-21"]
[77,null,null,null,null,null,null,null,null,null,null,null,null,null,null,null,null,null,"1900-01-21"]
[78,null,null,null,null,null,null,null,null,null,null,null,null,null,null,null,null,null,"1900-01-21"]
[79,null,null,null,null,null,null,null,null,null,null,null,null,null,null,null,null,null,"1900-01-21"]
[80,null,null,null,null,null,null,null,null,null,null,null,null,null,null,null,null,null,"1900-01-21"]
[81,null,null,null,null,null,null,null,null,null,null,null,null,null,null,null,null,null,"1900-01-21"]
[82,null,null,null,null,null,null,null,null,null,null,null,null,null,null,null,null,null,"1900-01-21"]
[83,null,null,null,null,null,null,null,null,null,null,null,null,null,null,null,null,null,"1900-01-21"]
[84,null,null,null,null,null,null,null,null,null,null,null,null,null,null,null,null,null,"1900-01-21"]
[85,null,null,null,null,null,null,null,null,null,null,null,null,null,null,null,null,null,"1900-01-21"]
[86,null,null,null,null,null,null,null,null,null,null,null,null,null,null,null,null,null,"1900-01-21"]
[87,null,null,null,null,null,null,null,null,null,null,null,null,null,null,null,null,null,"1900-01-21"]
[88,null,null,null,null,null,null,null,null,null,null,null,null,null,null,null,null,null,"1900-01-21"]
[89,null,null,null,null,null,null,null,null,null,null,null,null,null,null,null,null,null,"1900-01-21"]
[90,null,null,null,null,null,null,null,null,null,null,null,null,null,null,null,null,null,"1900-01-21"]
[91,null,null,null,null,null,null,null,null,null,null,null,null,null,null,null,null,null,"1900-01-21"]
[92,null,null,null,null,null,null,null,null,null,null,null,null,null,null,null,null,null,"1900-01-21"]
[93,null,null,null,null,null,null,null,null,null,null,null,null,null,null,null,null,null,"1900-01-21"]
[94,null,null,null,null,null,null,null,null,null,null,null,null,null,null,null,null,null,"1900-01-21"]
[95,null,null,null,null,null,null,null,null,null,null,null,null,null,null,null,null,null,"1900-01-21"]
[96,null,null,null,null,null,null,null,null,null,null,null,null,null,null,null,null,null,"1900-01-21"]
[97,null,null,null,null,null,null,null,null,null,null,null,null,null,null,null,null,null,"1900-01-21"]
[98,null,null,null,null,null,null,null,null,null,null,null,null,null,null,null,null,null,"1900-01-21"]
[99,null,null,null,null,null,null,null,null,null,null,null,null,null,null,null,null,null,"1900-01-21"]
[100,null,null,null,null,null,null,null,null,null,null,null,null,null,null,null,null,null,"1900-01-21"]

{"sheet":"②接触者リスト (医療機関来院者用②)","index":4,"n_rows":104,"n_cols":31,"rows_kept":104,"cut":false,"hidden":false,"merged":[[2,1,3,1],[2,2,3,2],[2,3,3,3],[2,4,3,4],[2,0,3,0],[2,5,3,5],[2,6,3,6],[2,7,3,7],[2,8,3,8],[2,9,3,9],[2,10,3,10],[2,11,3,11],[2,12,3,12],[2,13,2,14],[2,26,3,26],[2,22,3,22],[2,23,3,23],[2,24,2,25],[2,28,3,28],[2,29,3,29],[2,30,3,30],[2,15,3,15],[2,16,3,16],[2,17,3,17],[2,18,3,18],[2,19,3,19],[2,20,3,20],[2,21,3,21],[2,27,3,27]]}
[null,"同行者横列ver"]
[]
["No.","①\n接触者氏名","②\nフリガナ","③\n年齢","④\n性別","⑤\n生年月日","⑥\n麻しん\n罹患歴","⑦\nワクチン\n接種歴","⑧ 住所","⑨ 電話番号","　⑩　麻しん患者との接触状況\n　（記載例）\n　　・外来患者　・面会者\n　　・外部業者(検査機関）","⑪\n最終\n接触日","⑫\n保健所から\n連絡することを\n伝えたか","⑬ 感受性者への対応",null,"①-2\n同行者氏名","②-2\nフリガナ","③-2\n年齢","④-2\n性別","⑤-2\n生年月日","⑥-2\n麻しん\n罹患歴","⑦-2\nワクチン\n接種歴","⑧-2 住所\n\n※受診者と同じ場合は記載不要","⑨-2 電話番号\n\n※受診者と同じ場合は記載不要","⑬-2 感受性者への対応",null,"健康観察\n終了日","健康観察方法","対応保健所","転帰","備考"]
[null,null,null,null,null,null,null,null,null,null,null,null,null,"対応状況","実施日\n(実施ありの場合のみ記載)",null,null,null,null,null,null,null,null,null,"対応状況","実施日\n(実施ありの場合のみ記載)"]
[1,null,null,null,null,null,null,null,null,null,null,null,null,null,null,null,null,null,null,null,null,null,null,null,null,null,{"$f":"L5+21","v":"1900-01-21"}]
[2,null,null,null,null,null,null,null,null,null,null,null,null,null,null,null,null,null,null,null,null,null,null,null,null,null,"1900-01-21"]
[3,null,null,null,null,null,null,null,null,null,null,null,null,null,null,null,null,null,null,null,null,null,null,null,null,null,"1900-01-21"]
[4,null,null,null,null,null,null,null,null,null,null,null,null,null,null,null,null,null,null,null,null,null,null,null,null,null,"1900-01-21"]
[5,null,null,null,null,null,null,null,null,null,null,null,null,null,null,null,null,null,null,null,null,null,null,null,null,null,"1900-01-21"]
[6,null,null,null,null,null,null,null,null,null,null,null,null,null,null,null,null,null,null,null,null,null,null,null,null,null,"1900-01-21"]
[7,null,null,null,null,null,null,null,null,null,null,null,null,null,null,null,null,null,null,null,null,null,null,null,null,null,"1900-01-21"]
[8,null,null,null,null,null,null,null,null,null,null,null,null,null,null,null,null,null,null,null,null,null,null,null,null,null,"1900-01-21"]
[9,null,null,null,null,null,null,null,null,null,null,null,null,null,null,null,null,null,null,null,null,null,null,null,null,null,"1900-01-21"]
[10,null,null,null,null,null,null,null,null,null,null,null,null,null,null,null,null,null,null,null,null,null,null,null,null,null,"1900-01-21"]
[11,null,null,null,null,null,null,null,null,null,null,null,null,null,null,null,null,null,null,null,null,null,null,null,null,null,"1900-01-21"]
[12,null,null,null,null,null,null,null,null,null,null,null,null,null,null,null,null,null,null,null,null,null,null,null,null,null,"1900-01-21"]
[13,null,null,null,null,null,null,null,null,null,null,null,null,null,null,null,null,null,null,null,null,null,null,null,null,null,"1900-01-21"]
[14,null,null,null,null,null,null,null,null,null,null,null,null,null,null,null,null,null,null,null,null,null,null,null,null,null,"1900-01-21"]
[15,null,null,null,null,null,null,null,null,null,null,null,null,null,null,null,null,null,null,null,null,null,null,null,null,null,"1900-01-21"]
[16,null,null,null,null,null,null,null,null,null,null,null,null,null,null,null,null,null,null,null,null,null,null,null,null,null,"1900-01-21"]
[17,null,null,null,null,null,null,null,null,null,null,null,null,null,null,null,null,null,null,null,null,null,null,null,null,null,"1900-01-21"]
[18,null,null,null,null,null,null,null,null,null,null,null,null,null,null,null,null,null,null,null,null,null,null,null,null,null,"1900-01-21"]
[19,null,null,null,null,null,null,null,null,null,null,null,null,null,null,null,null,null,null,null,null,null,null,null,null,null,"1900-01-21"]
[20,null,null,null,null,null,null,null,null,null,null,null,null,null,null,null,null,null,null,null,null,null,null,null,null,null,"1900-01-21"]
[21,null,null,null,null,null,null,null,null,null,null,null,null,null,null,null,null,null,null,null,null,null,null,null,null,null,"1900-01-21"]
[22,null,null,null,null,null,null,null,null,null,null,null,null,null,null,null,null,null,null,null,null,null,null,null,null,null,"1900-01-21"]
[23,null,null,null,null,null,null,null,null,null,null,null,null,null,null,null,null,null,null,null,null,null,null,null,null,null,"1900-01-21"]
[24,null,null,null,null,null,null,null,null,null,null,null,null,null,null,null,null,null,null,null,null,null,null,null,null,null,"1900-01-21"]
[25,null,null,null,null,null,null,null,null,null,null,null,null,null,null,null,null,null,null,null,null,null,null,null,null,null,"1900-01-21"]
[26,null,null,null,null,null,null,null,null,null,null,null,null,null,null,null,null,null,null,null,null,null,null,null,null,null,"1900-01-21"]
[27,null,null,null,null,null,null,null,null,null,null,null,null,null,null,null,null,null,null,null,null,null,null,null,null,null,"1900-01-21"]
[28,null,null,null,null,null,null,null,null,null,null,null,null,null,null,null,null,null,null,null,null,null,null,null,null,null,"1900-01-21"]
[29,null,null,null,null,null,null,null,null,null,null,null,null,null,null,null,null,null,null,null,null,null,null,null,null,null,"1900-01-21"]
[30,null,null,null,null,null,null,null,null,null,null,null,null,null,null,null,null,null,null,null,null,null,null,null,null,null,"1900-01-21"]
[31,null,null,null,null,null,null,null,null,null,null,null,null,null,null,null,null,null,null,null,null,null,null,null,null,null,"1900-01-21"]
[32,null,null,null,null,null,null,null,null,null,null,null,null,null,null,null,null,null,null,null,null,null,null,null,null,null,"1900-01-21"]
[33,null,null,null,null,null,null,null,null,null,null,null,null,null,null,null,null,null,null,null,null,null,null,null,null,null,"1900-01-21"]
[34,null,null,null,null,null,null,null,null,null,null,null,null,null,null,null,null,null,null,null,null,null,null,null,null,null,"1900-01-21"]
[35,null,null,null,null,null,null,null,null,null,null,null,null,null,null,null,null,null,null,null,null,null,null,null,null,null,"1900-01-21"]
[36,null,null,null,null,null,null,null,null,null,null,null,null,null,null,null,null,null,null,null,null,null,null,null,null,null,"1900-01-21"]
[37,null,null,null,null,null,null,null,null,null,null,null,null,null,null,null,null,null,null,null,null,null,null,null,null,null,"1900-01-21"]
[38,null,null,null,null,null,null,null,null,null,null,null,null,null,null,null,null,null,null,null,null,null,null,null,null,null,"1900-01-21"]
[39,null,null,null,null,null,null,null,null,null,null,null,null,null,null,null,null,null,null,null,null,null,null,null,null,null,"1900-01-21"]
[40,null,null,null,null,null,null,null,null,null,null,null,null,null,null,null,null,null,null,null,null,null,null,null,null,null,"1900-01-21"]
[41,null,null,null,null,null,null,null,null,null,null,null,null,null,null,null,null,null,null,null,null,null,null,null,null,null,"1900-01-21"]
[42,null,null,null,null,null,null,null,null,null,null,null,null,null,null,null,null,null,null,null,null,null,null,null,null,null,"1900-01-21"]
[43,null,null,null,null,null,null,null,null,null,null,null,null,null,null,null,null,null,null,null,null,null,null,null,null,null,"1900-01-21"]
[44,null,null,null,null,null,null,null,null,null,null,null,null,null,null,null,null,null,null,null,null,null,null,null,null,null,"1900-01-21"]
[45,null,null,null,null,null,null,null,null,null,null,null,null,null,null,null,null,null,null,null,null,null,null,null,null,null,"1900-01-21"]
[46,null,null,null,null,null,null,null,null,null,null,null,null,null,null,null,null,null,null,null,null,null,null,null,null,null,"1900-01-21"]
[47,null,null,null,null,null,null,null,null,null,null,null,null,null,null,null,null,null,null,null,null,null,null,null,null,null,"1900-01-21"]
[48,null,null,null,null,null,null,null,null,null,null,null,null,null,null,null,null,null,null,null,null,null,null,null,null,null,"1900-01-21"]
[49,null,null,null,null,null,null,null,null,null,null,null,null,null,null,null,null,null,null,null,null,null,null,null,null,null,"1900-01-21"]
[50,null,null,null,null,null,null,null,null,null,null,null,null,null,null,null,null,null,null,null,null,null,null,null,null,null,"1900-01-21"]
[51,null,null,null,null,null,null,null,null,null,null,null,null,null,null,null,null,null,null,null,null,null,null,null,null,null,"1900-01-21"]
[52,null,null,null,null,null,null,null,null,null,null,null,null,null,null,null,null,null,null,null,null,null,null,null,null,null,"1900-01-21"]
[53,null,null,null,null,null,null,null,null,null,null,null,null,null,null,null,null,null,null,null,null,null,null,null,null,null,"1900-01-21"]
[54,null,null,null,null,null,null,null,null,null,null,null,null,null,null,null,null,null,null,null,null,null,null,null,null,null,"1900-01-21"]
[55,null,null,null,null,null,null,null,null,null,null,null,null,null,null,null,null,null,null,null,null,null,null,null,null,null,"1900-01-21"]
[56,null,null,null,null,null,null,null,null,null,null,null,null,null,null,null,null,null,null,null,null,null,null,null,null,null,"1900-01-21"]
[57,null,null,null,null,null,null,null,null,null,null,null,null,null,null,null,null,null,null,null,null,null,null,null,null,null,"1900-01-21"]
[58,null,null,null,null,null,null,null,null,null,null,null,null,null,null,null,null,null,null,null,null,null,null,null,null,null,"1900-01-21"]
[59,null,null,null,null,null,null,null,null,null,null,null,null,null,null,null,null,null,null,null,null,null,null,null,null,null,"1900-01-21"]
[60,null,null,null,null,null,null,null,null,null,null,null,null,null,null,null,null,null,null,null,null,null,null,null,null,null,"1900-01-21"]
[61,null,null,null,null,null,null,null,null,null,null,null,null,null,null,null,null,null,null,null,null,null,null,null,null,null,"1900-01-21"]
[62,null,null,null,null,null,null,null,null,null,null,null,null,null,null,null,null,null,null,null,null,null,null,null,null,null,"1900-01-21"]
[63,null,null,null,null,null,null,null,null,null,null,null,null,null,null,null,null,null,null,null,null,null,null,null,null,null,"1900-01-21"]
[64,null,null,null,null,null,null,null,null,null,null,null,null,null,null,null,null,null,null,null,null,null,null,null,null,null,"1900-01-21"]
[65,null,null,null,null,null,null,null,null,null,null,null,null,null,null,null,null,null,null,null,null,null,null,null,null,null,{"$f":"L69+21","v":"1900-01-21"}]
[66,null,null,null,null,null,null,null,null,null,null,null,null,null,null,null,null,null,null,null,null,null,null,null,null,null,"1900-01-21"]
[67,null,null,null,null,null,null,null,null,null,null,null,null,null,null,null,null,null,null,null,null,null,null,null,null,null,"1900-01-21"]
[68,null,null,null,null,null,null,null,null,null,null,null,null,null,null,null,null,null,null,null,null,null,null,null,null,null,"1900-01-21"]
[69,null,null,null,null,null,null,null,null,null,null,null,null,null,null,null,null,null,null,null,null,null,null,null,null,null,"1900-01-21"]
[70,null,null,null,null,null,null,null,null,null,null,null,null,null,null,null,null,null,null,null,null,null,null,null,null,null,"1900-01-21"]
[71,null,null,null,null,null,null,null,null,null,null,null,null,null,null,null,null,null,null,null,null,null,null,null,null,null,"1900-01-21"]
[72,null,null,null,null,null,null,null,null,null,null,null,null,null,null,null,null,null,null,null,null,null,null,null,null,null,"1900-01-21"]
[73,null,null,null,null,null,null,null,null,null,null,null,null,null,null,null,null,null,null,null,null,null,null,null,null,null,"1900-01-21"]
[74,null,null,null,null,null,null,null,null,null,null,null,null,null,null,null,null,null,null,null,null,null,null,null,null,null,"1900-01-21"]
[75,null,null,null,null,null,null,null,null,null,null,null,null,null,null,null,null,null,null,null,null,null,null,null,null,null,"1900-01-21"]
[76,null,null,null,null,null,null,null,null,null,null,null,null,null,null,null,null,null,null,null,null,null,null,null,null,null,"1900-01-21"]
[77,null,null,null,null,null,null,null,null,null,null,null,null,null,null,null,null,null,null,null,null,null,null,null,null,null,"1900-01-21"]
[78,null,null,null,null,null,null,null,null,null,null,null,null,null,null,null,null,null,null,null,null,null,null,null,null,null,"1900-01-21"]
[79,null,null,null,null,null,null,null,null,null,null,null,null,null,null,null,null,null,null,null,null,null,null,null,null,null,"1900-01-21"]
[80,null,null,null,null,null,null,null,null,null,null,null,null,null,null,null,null,null,null,null,null,null,null,null,null,null,"1900-01-21"]
[81,null,null,null,null,null,null,null,null,null,null,null,null,null,null,null,null,null,null,null,null,null,null,null,null,null,"1900-01-21"]
[82,null,null,null,null,null,null,null,null,null,null,null,null,null,null,null,null,null,null,null,null,null,null,null,null,null,"1900-01-21"]
[83,null,null,null,null,null,null,null,null,null,null,null,null,null,null,null,null,null,null,null,null,null,null,null,null,null,"1900-01-21"]
[84,null,null,null,null,null,null,null,null,null,null,null,null,null,null,null,null,null,null,null,null,null,null,null,null,null,"1900-01-21"]
[85,null,null,null,null,null,null,null,null,null,null,null,null,null,null,null,null,null,null,null,null,null,null,null,null,null,"1900-01-21"]
[86,null,null,null,null,null,null,null,null,null,null,null,null,null,null,null,null,null,null,null,null,null,null,null,null,null,"1900-01-21"]
[87,null,null,null,null,null,null,null,null,null,null,null,null,null,null,null,null,null,null,null,null,null,null,null,null,null,"1900-01-21"]
[88,null,null,null,null,null,null,null,null,null,null,null,null,null,null,null,null,null,null,null,null,null,null,null,null,null,"1900-01-21"]
[89,null,null,null,null,null,null,null,null,null,null,null,null,null,null,null,null,null,null,null,null,null,null,null,null,null,"1900-01-21"]
[90,null,null,null,null,null,null,null,null,null,null,null,null,null,null,null,null,null,null,null,null,null,null,null,null,null,"1900-01-21"]
[91,null,null,null,null,null,null,null,null,null,null,null,null,null,null,null,null,null,null,null,null,null,null,null,null,null,"1900-01-21"]
[92,null,null,null,null,null,null,null,null,null,null,null,null,null,null,null,null,null,null,null,null,null,null,null,null,null,"1900-01-21"]
[93,null,null,null,null,null,null,null,null,null,null,null,null,null,null,null,null,null,null,null,null,null,null,null,null,null,"1900-01-21"]
[94,null,null,null,null,null,null,null,null,null,null,null,null,null,null,null,null,null,null,null,null,null,null,null,null,null,"1900-01-21"]
[95,null,null,null,null,null,null,null,null,null,null,null,null,null,null,null,null,null,null,null,null,null,null,null,null,null,"1900-01-21"]
[96,null,null,null,null,null,null,null,null,null,null,null,null,null,null,null,null,null,null,null,null,null,null,null,null,null,"1900-01-21"]
[97,null,null,null,null,null,null,null,null,null,null,null,null,null,null,null,null,null,null,null,null,null,null,null,null,null,"1900-01-21"]
[98,null,null,null,null,null,null,null,null,null,null,null,null,null,null,null,null,null,null,null,null,null,null,null,null,null,"1900-01-21"]
[99,null,null,null,null,null,null,null,null,null,null,null,null,null,null,null,null,null,null,null,null,null,null,null,null,null,"1900-01-21"]
[100,null,null,null,null,null,null,null,null,null,null,null,null,null,null,null,null,null,null,null,null,null,null,null,null,null,"1900-01-21"]